Cogmind - Beta 12 @@@ ROGUE MODE // 2023.06.12 @ 11:09:14 Player: LustLizard Result: Self-destructed Performance ------------- Evolutions (4) 2000 Regions Visited (10) 2000 Robots Destroyed (78) 390 Value Destroyed (2177) 2177 Prototype IDs (29) 580 Alien Tech Used (0) 0 Bonus (727) 727 TOTAL SCORE: 7874 Bonus ------- High Alert Combat Kills 45 Follower Combat Kills 436 Aligned with FarCom 300 Friendly Fire -54 Cogmind --------- Core Integrity 706/850 Matter 159/300 Energy 100/100 System Corruption 5% Temperature Warm (140) Movement Core (450) Ox8 Location -6/Factory Parts ------- > --- POWER (1) -------- (None) > --- PROPULSION (4) --- (None) > --- UTILITY (8) ------ Coolant Injector Large Storage Unit Improved Signal Interpreter Improved Terrain Scanner > --- WEAPON (2) ------- Field Laser > --- INVENTORY (15) --- Light Nuclear Core Nuclear Pulse Thruster Nuclear Pulse Thruster Nuclear Pulse Thruster Nuclear Pulse Thruster Nuclear Pulse Thruster Improved Cooling System Medium Storage Unit Advanced Weight Redist. System Improved Light Armor Plating Heavy Laser Gauss Rifle Heavy Pick Peak State ------------ > --- POWER ------------ Angular Momentum Engine > --- PROPULSION ------- Light Treads Improved Treads Advanced Treads Armored Wheel > --- UTILITY ---------- Improved Heat Sink Advanced Heat Sink Coolant Injector Large Storage Unit Improved Signal Interpreter Improved Terrain Scanner Medium Armor Plating Improved Shield Generator > --- WEAPON ----------- Ion Burst Cannon Gauss Rifle > --- INVENTORY -------- Light Nuclear Core Nuclear Pulse Thruster Nuclear Pulse Thruster Nuclear Pulse Thruster Nuclear Pulse Thruster Nuclear Pulse Thruster Improved Cooling System Medium Storage Unit Superbattery Advanced Weight Redist. System Improved Light Armor Plating Field Laser Heavy Laser Rocket Launcher Heavy Pick [Rating: 54] Favorites ----------- Power Light Nuclear Core Engine Improved Ion Engine Power Core Light Nuclear Core Propulsion Light Treads Treads Light Treads Leg Aluminum Leg Wheel Armored Wheel Utility Heat Sink Device Heat Sink Storage Medium Storage Unit Processor Improved Terrain Scan Processor Protection Light Armor Plating Weapon Beam Rifle Energy Gun Beam Rifle Energy Cannon Heavy Particle Cannon Ballistic Gun Light Assault Rifle Ballistic Cannon Bore Cannon Launcher Rocket Launcher Impact Weapon Mace Build | -11 -10 -10 -9 -9 -9 -8 -8 -8 -7 -6 ------- Run | Jun Mat Min Mat Min Exi Min Mat Sto Fac Fac Slots Evolved 8 | . . . 2 . . . 2 . 2 2 Power . | . . . . . . . . . . . Propulsion 2 | . . . . . . . 1 . 1 . Utility 6 | . . . 2 . . . 1 . 1 2 Weapon . | . . . . . . . . . . . Parts Attached 86 | 7 13 6 9 4 1 4 16 9 8 9 Power 7 | 1 1 1 . . 1 . 2 . . 1 Engine 5 | 1 . 1 . . 1 . 1 . . 1 Core 2 | . 1 . . . . . 1 . . . Reactor . | . . . . . . . . . . . Propulsion 19 | 3 6 2 2 . . . 2 1 3 . Treads 13 | 1 4 1 1 . . . 2 1 3 . Leg 1 | 1 . . . . . . . . . . Wheel 5 | 1 2 1 1 . . . . . . . Hover . | . . . . . . . . . . . Flight . | . . . . . . . . . . . Utility 26 | 1 3 1 4 1 . . 5 3 4 4 Device 10 | . . . 2 1 . . 1 1 1 4 Storage 4 | 1 1 . . . . . 2 . . . Processor 3 | . 1 . . . . . . 1 1 . Hackware . | . . . . . . . . . . . Protection 9 | . 1 1 2 . . . 2 1 2 . Artifact . | . . . . . . . . . . . Weapon 34 | 2 3 2 3 3 . 4 7 5 1 4 Energy Gun 9 | . 1 1 2 1 . . 2 1 . 1 Energy Cannon 5 | . . . . . . . 1 2 . 2 Ballistic Gun 6 | 2 2 1 . . . . . . 1 . Ballistic Cannon 5 | . . . . 1 . 2 2 . . . Launcher 8 | . . . 1 . . 2 2 2 . 1 Special Weapon . | . . . . . . . . . . . Impact Weapon 1 | . . . . 1 . . . . . . Slashing Weapon . | . . . . . . . . . . . Piercing Weapon . | . . . . . . . . . . . Special Melee Weapon . | . . . . . . . . . . . Unidentified Prototypes 1 | . . . . . . . . . . 1 Parts Lost 14 | . 1 . . . . . 1 1 . 11 Power 1 | . . . . . . . . . . 1 Propulsion 4 | . . . . . . . . . . 4 Utility 6 | . 1 . . . . . . 1 . 4 Weapon 3 | . . . . . . . 1 . . 2 Highest Loss Streak 11 | . 1 . . . . . 1 1 . 11 To Critical Strikes . | . . . . . . . . . . . Average Slot Usage (%) 99 | . 99 100 97 100 100 100 100 99 97 98 Engine 6 | . 11 2 11 11 11 11 6 . . . Core 3 | . 2 11 . . . . 2 9 7 5 Treads 15 | . 15 14 11 11 11 11 18 18 20 19 Wheel 9 | . 12 14 11 11 11 11 9 9 7 5 Device 17 | . . . 19 22 22 22 18 18 22 28 Storage 10 | . 14 14 11 11 11 11 9 9 7 6 Processor 4 | . 7 11 . . . . . 1 7 10 Protection 9 | . 6 2 11 11 11 11 18 15 6 5 Energy Gun 8 | . 2 14 21 11 11 11 8 9 2 . Energy Cannon 2 | . . . . . . . 1 8 7 6 Ballistic Gun 6 | . 25 14 . . . . . . 4 5 Ballistic Cannon 2 | . . . . 9 11 7 7 . . . Naked Turns . | . . . . . . . . . . . Heaviest Build 60 | 13 23 24 28 34 34 32 48 46 45 60 Greatest Support 42 | 10 40 10 20 20 12 12 40 20 42 12 Greatest Overweight (x) 4 | 1 2 2 2 2 2 2 3 3 3 4 Average Overweight (x) 2 | . 1 1 1 1 2 2 2 2 2 3 Largest Inventory Capacity 15 | 8 10 10 10 10 10 10 15 15 15 15 Average Capacity 11 | 7 9 10 10 10 10 10 12 15 15 15 Most Carried 15 | 6 10 10 10 10 10 10 15 15 15 15 Average Carried 11 | 4 9 10 9 9 9 9 11 14 14 14 Final Capacity 15 | 8 10 10 10 10 10 10 15 15 15 15 Final Carried 15 | 6 10 10 10 10 10 10 15 15 15 13 Class Distribution -------------------- 45% | Scavenger-Mutant 28% | Mutant 21% | Skirmisher 3% | Scavenger-Skirmisher Dominant Class ---------------- Mutant | -10/Materials Scavenger-Mutant | -10/Mines Scavenger-Mutant | -9/Materials Scavenger-Mutant | -9/Mines Scavenger-Mutant | -9/Exiles Scavenger-Mutant | -8/Mines Mutant | -8/Materials Mutant | -8/Storage Skirmisher | -7/Factory Skirmisher | -6/Factory Resources | -11 -10 -10 -9 -9 -9 -8 -8 -8 -7 -6 ----------- Run | Jun Mat Min Mat Min Exi Min Mat Sto Fac Fac Matter Collected 1577 | 199 407 86 91 121 . 13 424 127 70 39 Remotely . | . . . . . . . . . . . Salvage Created 2311 | . 434 250 355 180 . 29 339 334 . 390 Parts 132 | . 25 14 20 10 . 9 17 10 . 27 Haulers Intercepted 1 | . . . . . . . 1 . . . Recyclers Shooed 2 | . . . . . . . . . . 2 Parts Field Recycled . | . . . . . . . . . . . Retrieved Matter . | . . . . . . . . . . . Parts Self-Destructed . | . . . . . . . . . . . Prevented . | . . . . . . . . . . . Kills | -11 -10 -10 -9 -9 -9 -8 -8 -8 -7 -6 ------- Run | Jun Mat Min Mat Min Exi Min Mat Sto Fac Fac Combat Hostiles Destroyed 54 | . 11 3 9 4 . 7 9 5 . 6 Guns 27 | . 11 3 6 3 . . 1 2 . 1 Cannons 12 | . . . . 1 . . 6 1 . 4 AOE 15 | . . . 3 . . 7 2 2 . 1 Classes Destroyed 15 | . 3 3 1 . . . 2 2 . 4 Worker 7 | . . 2 1 2 . . . . . 2 Builder 4 | . . . . . . . 1 . . 3 Tunneler 1 | . . 1 . . . . . . . . Hauler 1 | . . . . . . . 1 . . . Recycler 3 | . . 2 . . . . . . . 1 Mechanic 2 | . . . . . . . . 2 . . Watcher 6 | . 3 . 1 . . . . . . 2 Swarmer 19 | . 3 3 3 . . 7 3 . . . Grunt 24 | . 8 . 3 4 . . 5 4 . . Duelist 1 | . . . . . . . . 1 . . Sentry 4 | . . . 3 . . . 1 . . . Specialist 1 | . . . . . . . . . . 1 Hunter 1 | . . . . . . . . . . 1 Programmer 3 | . . . . . . . . . . 3 Behemoth 1 | . . . . . . . . . . 1 Best Kill Streak 9 | . 3 4 4 3 . 4 7 3 . 9 Combat Bots Only 6 | . 3 3 4 2 . 4 6 2 . 2 Max Kills in Single Turn 3 | . 1 1 3 2 . 3 2 2 . 2 Gunslinging . | . . . . . . . . . . . Exploded 3 | . . . 3 . . 3 1 1 . 1 Melee . | . . . . . . . . . . . Uniques/NPCs Destroyed . | . . . . . . . . . . . Combat | -11 -10 -10 -9 -9 -9 -8 -8 -8 -7 -6 -------- Run | Jun Mat Min Mat Min Exi Min Mat Sto Fac Fac Damage Taken 3100 | . 570 93 214 38 . 8 715 263 . 1199 Core 345 | . 112 14 41 . . . 15 19 . 144 Absorbed by Shields 232 | . . . . . . . . . . 232 Regen/Repaired (Parts) 113 | . 45 . . . . . . 68 . . Core Remaining (%) 86 | 100 . 49 . . . 89 . 93 100 . Volleys Fired 180 | . 56 16 22 13 . 5 29 17 . 22 Largest 2 | . 2 2 2 2 . 1 2 2 . 2 Hottest 163 | . 85 85 112 113 . 33 140 138 . 163 Shots Fired 330 | . 112 32 43 26 . 5 42 27 . 43 Gun 236 | . 112 32 42 14 . . 13 10 . 13 Cannon 73 | . . . . 12 . . 25 15 . 21 Launcher 21 | . . . 1 . . 5 4 2 . 9 Special . | . . . . . . . . . . . Kinetic 166 | . 111 16 . 12 . . 20 . . 7 Thermal 143 | . 1 16 42 14 . . 18 25 . 27 Explosive 21 | . . . 1 . . 5 4 2 . 9 Electromagnetic . | . . . . . . . . . . . Robot Hit Streak 9 | . 9 8 9 6 . . 3 9 . 8 Robot Miss Streak 4 | . 4 2 3 3 . . 4 1 . 3 Penetration Max 1 | . . . . . . . 1 . . . Secondary Targets 3 | . 2 1 . . . . . . . . Max Gunslinging Chain 1 | . 1 1 . . . . . . . . Shots Hit Robots 201 | . 70 16 28 14 . . 22 19 . 32 Core Hits 148 | . 33 9 15 6 . 8 17 19 . 41 Critical Kills 7 | . . . . 3 . . 4 . . . Critical Parts Destroyed 7 | . 1 . . 2 . . 3 . . 1 Critical Strikes 20 | . 1 . 3 6 . . 9 . . 1 Burn 4 | . . . 3 1 . . . . . . Destroy 16 | . 1 . . 5 . . 9 . . 1 Melee Attacks 10 | . . . . 10 . . . . . . Impact 10 | . . . . 10 . . . . . . Slashing . | . . . . . . . . . . . Piercing . | . . . . . . . . . . . Sneak Attacks . | . . . . . . . . . . . Combat Hostiles . | . . . . . . . . . . . Follow-up Attacks . | . . . . . . . . . . . Damage Inflicted 5849 | . 820 223 534 303 . 287 758 747 . 2177 Guns 1957 | . 820 223 409 119 . . 124 154 . 108 Cannons 1843 | . . . . 184 . . 424 225 . 1010 Explosions 2049 | . . . 125 . . 287 210 368 . 1059 Melee . | . . . . . . . . . . . Ramming . | . . . . . . . . . . . Kinetic 1423 | . 805 44 . 184 . . 324 . . 66 Thermal 2459 | . 15 179 409 119 . . 224 379 . 1134 Explosive 1967 | . . . 125 . . 287 210 368 . 977 Electromagnetic . | . . . . . . . . . . . Impact . | . . . . . . . . . . . Slashing . | . . . . . . . . . . . Piercing . | . . . . . . . . . . . Highest Corruption 5 | . . . . . . . . . . 5 Average Corruption 2 | . . . . . . . . . . 2 Corruption Purged . | . . . . . . . . . . . Corruption Blocked . | . . . . . . . . . . . Effects 1 | . . . . . . . . . . 1 Matter Fused 1 | . . . . . . . . . . 1 Overload Shots . | . . . . . . . . . . . Overflow Damage 30 | . . . . 6 . . 19 . . 5 Projectiles 22 | . . . . 6 . . 11 . . 5 Explosions 8 | . . . . . . . 8 . . . Melee . | . . . . . . . . . . . Knockbacks 5 | . . . . 3 . . 2 . . . Impact . | . . . . . . . . . . . Kinetic 5 | . . . . 3 . . 2 . . . Secondary . | . . . . . . . . . . . Self-Inflicted Damage 32 | . . . . . . . 28 4 . . Shots 2 | . . . . . . . 1 1 . . Rammed . | . . . . . . . . . . . Targets Rammed . | . . . . . . . . . . . Kicked . | . . . . . . . . . . . Crushed . | . . . . . . . . . . . Highest Temperature 354 | . 48 354 24 4 . . 231 90 . 140 Average Temperature 55 | . 8 126 5 3 . . 104 30 . 22 Received Heat Transfer 942 | . 276 . 69 39 . . 243 171 . 144 Effects 4 | . . . . . . . 4 . . . Energy Bleed 1 | . . . . . . . 1 . . . Interference 3 | . . . . . . . 3 . . . Siege Activations . | . . . . . . . . . . . Robots Corrupted . | . . . . . . . . . . . Combat Hostiles . | . . . . . . . . . . . Parts Fried . | . . . . . . . . . . . Impact Corruptions . | . . . . . . . . . . . Robots Melted . | . . . . . . . . . . . Combat Hostiles . | . . . . . . . . . . . Parts Melted 5 | . . . 4 . . . . . . 1 Heat Transferred 4381 | . 37 407 1258 370 . . 444 666 . 1199 Parts Sabotaged . | . . . . . . . . . . . Parts Stolen . | . . . . . . . . . . . Parts Stripped . | . . . . . . . . . . . Power Chain Reactions . | . . . . . . . . . . . Missiles Intercepted . | . . . . . . . . . . . Alert | -11 -10 -10 -9 -9 -9 -8 -8 -8 -7 -6 ------- Run | Jun Mat Min Mat Min Exi Min Mat Sto Fac Fac Peak Influence 643 | . 217 101 276 152 . 185 208 643 259 155 Initial 254 | . . 16 3 36 . . . 87 254 28 Average 89 | . 95 39 87 55 . 62 74 268 179 34 Maximum Alert Level 2 | . 1 . 1 . . . 1 2 1 . Low Security (%) 88 | 100 93 100 92 100 . 100 90 58 38 100 Level 1 9 | . 6 . 7 . . . 9 10 61 . Level 2 2 | . . . . . . . . 31 . . Level 3 . | . . . . . . . . . . . Level 4 . | . . . . . . . . . . . Level 5 . | . . . . . . . . . . . High Security . | . . . . . . . . . . . Max Security . | . . . . . . . . . . . Squads Dispatched 12 | . 4 . . . . . 1 3 . 4 Investigation 3 | . 3 . . . . . . . . . Extermination 2 | . . . . . . . . . . 2 Reinforcement 4 | . 1 . . . . . 1 . . 2 Assault 2 | . . . . . . . . 2 . . Garrison 1 | . . . . . . . . 1 . . Intercept . | . . . . . . . . . . . Searches Triggered . | . . . . . . . . . . . Construction Impeded 2 | . . . . . . . 1 . . 1 Haulers Reinforced . | . . . . . . . . . . . Active Scanning Responses . | . . . . . . . . . . . Cargo Convoy Interrupts 1 | . . . . . . . . . . 1 Stealth | -11 -10 -10 -9 -9 -9 -8 -8 -8 -7 -6 --------- Run | Jun Mat Min Mat Min Exi Min Mat Sto Fac Fac Distress Signals 6 | . 2 . 1 . . . 1 . . 2 Communications Jammed . | . . . . . . . . . . . Distress Signals . | . . . . . . . . . . . Times Spotted 103 | . 28 3 13 7 . . 15 19 . 18 Peak Tracking Total 7 | . 5 3 7 4 . 2 5 4 . 6 Tactical Retreats 2 | . 1 . . 1 . . . . . . Traps | -11 -10 -10 -9 -9 -9 -8 -8 -8 -7 -6 ------- Run | Jun Mat Min Mat Min Exi Min Mat Sto Fac Fac Traps Triggered 5 | . 3 . 1 . . . . . 1 . Indirectly . | . . . . . . . . . . . Trap Hack Attempts . | . . . . . . . . . . . Triggered . | . . . . . . . . . . . Disarmed . | . . . . . . . . . . . Reprogrammed . | . . . . . . . . . . . Reused . | . . . . . . . . . . . Traps Extracted . | . . . . . . . . . . . Installed . | . . . . . . . . . . . Triggered . | . . . . . . . . . . . Machines | -11 -10 -10 -9 -9 -9 -8 -8 -8 -7 -6 ---------- Run | Jun Mat Min Mat Min Exi Min Mat Sto Fac Fac Machines Disabled 6 | . . . 1 . . . . 2 . 3 Max in Single Turn 3 | . . . . . . . . 1 . 3 Garrison Access 1 | . . . . . . . . 1 . . Machines Repaired . | . . . . . . . . . . . Machines Sabotaged . | . . . . . . . . . . . Overloaded Fab Kills . | . . . . . . . . . . . Hacking | -11 -10 -10 -9 -9 -9 -8 -8 -8 -7 -6 --------- Run | Jun Mat Min Mat Min Exi Min Mat Sto Fac Fac Machines Accessed 21 | . 7 1 5 . 1 . 3 2 1 1 Terminals 18 | . 6 1 5 . . . 3 1 1 1 Fabricators . | . . . . . . . . . . . Repair Stations 2 | . 1 . . . . . . 1 . . Recycling Units . | . . . . . . . . . . . Scanalyzers . | . . . . . . . . . . . Garrison Access . | . . . . . . . . . . . Total Hacks 61 | . 22 3 15 . 1 . 8 5 3 4 Successful 33 | . 13 . 10 . 1 . 2 3 1 3 Failed 28 | . 9 3 5 . . . 6 2 2 1 Catastrophic 4 | . . . . . . . 4 . . . Database Lockouts . | . . . . . . . . . . . Manual 43 | . 17 3 12 . 1 . 3 3 3 1 Terminals 56 | . 20 3 15 . . . 8 3 3 4 Fabricators . | . . . . . . . . . . . Repair Stations 4 | . 2 . . . . . . 2 . . Recycling Units . | . . . . . . . . . . . Scanalyzers . | . . . . . . . . . . . Garrison Access . | . . . . . . . . . . . Terminal Hacks 16 | . 6 . 5 . 1 . 2 . . 2 Robot Analysis 5 | . 4 . 1 . . . . . . . Prototype ID Bank 2 | . . . 1 . . . . . . 1 Branch Access Points 1 | . . . 1 . . . . . . . Unreport Threat 3 | . 1 . 1 . . . 1 . . . Locate Traps 3 | . . . 1 . . . 1 . . 1 Recall Investigation 1 | . 1 . . . . . . . . . EX-Prototype ID Bank 1 | . . . . . 1 . . . . . Fabricator Hacks . | . . . . . . . . . . . Repair Station Hacks 4 | . 2 . . . . . . 2 . . Scan Component 2 | . 1 . . . . . . 1 . . Repair 2 | . 1 . . . . . . 1 . . Recycling Unit Hacks . | . . . . . . . . . . . Scanalyzer . | . . . . . . . . . . . Garrison Access Hacks . | . . . . . . . . . . . Unauthorized Hacks 13 | . 5 . 5 . . . . 1 1 1 Terminals 13 | . 5 . 5 . . . . 1 1 1 Assimilate 3 | . . . 2 . . . . . . 1 Botnet 10 | . 5 . 3 . . . . 1 1 . Fabricators . | . . . . . . . . . . . Repair Stations . | . . . . . . . . . . . Recycling Units . | . . . . . . . . . . . Scanalyzers . | . . . . . . . . . . . Garrison Access . | . . . . . . . . . . . Data Cores Recovered . | . . . . . . . . . . . Used . | . . . . . . . . . . . Hacking Detections 18 | . 6 1 5 . . . 3 1 1 1 Full Trace Events . | . . . . . . . . . . . Feedback Events . | . . . . . . . . . . . Feedback Blocked . | . . . . . . . . . . . Robot Schematics Acquired . | . . . . . . . . . . . Robots Built . | . . . . . . . . . . . Authchips . | . . . . . . . . . . . Time . | . . . . . . . . . . . Total Robot Build Rating . | . . . . . . . . . . . Part Schematics Acquired . | . . . . . . . . . . . Parts Built . | . . . . . . . . . . . Authchips . | . . . . . . . . . . . Time . | . . . . . . . . . . . Total Part Build Rating . | . . . . . . . . . . . Parts Repaired 2 | . 1 . . . . . . 1 . . Time 58 | . 26 . . . . . . 32 . . Parts Recycled . | . . . . . . . . . . . Recycled Matter . | . . . . . . . . . . . Retrieved Matter . | . . . . . . . . . . . Retrieved Components . | . . . . . . . . . . . Parts Scanalyzed . | . . . . . . . . . . . Part Schematics Acquired . | . . . . . . . . . . . Parts Damaged . | . . . . . . . . . . . Bothacking | -11 -10 -10 -9 -9 -9 -8 -8 -8 -7 -6 ------------ Run | Jun Mat Min Mat Min Exi Min Mat Sto Fac Fac Used RIF Installer . | . . . . . . . . . . . Robots Hacked . | . . . . . . . . . . . Non-combat . | . . . . . . . . . . . Combat . | . . . . . . . . . . . Robot Hacks Applied . | . . . . . . . . . . . Relay Couplers Released 2 | . . . . . . . . 2 . . Machine Destruction 2 | . . . . . . . . 2 . . Fabnet Peak Effective % . | . . . . . . . . . . . Robots Rewired . | . . . . . . . . . . . Allies Hacked . | . . . . . . . . . . . Hacks Repelled . | . . . . . . . . . . . Allies | -11 -10 -10 -9 -9 -9 -8 -8 -8 -7 -6 -------- Run | Jun Mat Min Mat Min Exi Min Mat Sto Fac Fac Total Allies 6 | . . 2 . 1 . . . 2 . 1 Largest Group 2 | . . 2 2 1 . . . 2 2 1 Highest-Rated Group 129 | . . 51 51 31 . . . 129 129 29 Highest-Rated Ally 100 | . . 31 31 31 . . . 100 100 29 Total Orders . | . . . . . . . . . . . Ally Attacks 62 | . . . 8 10 . . . 39 . 5 Total Damage 1525 | . . . 127 106 . . . 1209 . 83 Kills 19 | . . . 2 4 . . . 12 . 1 Allies Corrupted . | . . . . . . . . . . . Allies Melted . | . . . . . . . . . . . Intel | -11 -10 -10 -9 -9 -9 -8 -8 -8 -7 -6 ------- Run | Jun Mat Min Mat Min Exi Min Mat Sto Fac Fac Robot Analysis Total 5 | . 4 . 1 . . . . . . . Derelict Logs Recovered 3 | . . 1 . 2 . . . . . . Drone Launches . | . . . . . . . . . . . Drone Recoveries . | . . . . . . . . . . . Exploration | -11 -10 -10 -9 -9 -9 -8 -8 -8 -7 -6 ------------- Run | Jun Mat Min Mat Min Exi Min Mat Sto Fac Fac Turns Passed 7066 | 60 974 616 731 903 262 508 762 489 654 1107 Spaces Moved 4549 | 52 653 547 439 557 217 397 389 263 391 644 Core 15 | 15 . . . . . . . . . . Treads 472 | . 39 . 107 83 . . 151 23 69 . Legs 3 | 3 . . . . . . . . . . Wheels 4059 | 34 614 547 332 474 217 397 238 240 322 644 Hover . | . . . . . . . . . . . Flight . | . . . . . . . . . . . Fastest Speed 50 | 50 95 95 110 120 120 120 120 135 135 135 Average Speed 131 | 85 105 96 143 137 120 120 158 151 151 149 Slowest Speed 320 | 190 240 110 240 240 120 120 240 320 240 150 Overloaded Moves . | . . . . . . . . . . . Propulsion Burnouts . | . . . . . . . . . . . Robots Hopped . | . . . . . . . . . . . Cave-ins Triggered . | . . . . . . . . . . . Exploration Rate (%) 52 | 3 99 81 44 96 61 89 37 45 12 14 Regions Visited 10 Branch Regions 5 Pre-discovered Areas 2 | . . 1 . 1 . . . . . . Known Exits Taken 3 | . . . 1 . . . 1 . 1 . Unknown Exits Taken 7 | 1 1 1 . 1 1 1 . 1 . . Scrap Searched 2 | . . 1 . 1 . . . . . . Spaces Dug 41 | . . . . . . . 29 12 . . Terrain Destroyed 158 | . . . 10 6 . 26 51 28 . 37 Melee . | . . . . . . . . . . . Projectile 17 | . . . . 6 . . 8 2 . 1 AOE 141 | . . . 10 . . 26 43 26 . 36 Terrain Rammed . | . . . . . . . . . . . Walls Destroyed . | . . . . . . . . . . . Machines Disabled . | . . . . . . . . . . . Actions | -11 -10 -10 -9 -9 -9 -8 -8 -8 -7 -6 --------- Run | Jun Mat Min Mat Min Exi Min Mat Sto Fac Fac Total 5305 | 64 837 607 499 651 219 422 493 326 452 735 Wait 379 | . 94 30 22 59 . 15 44 30 43 42 Move 4539 | 51 652 546 438 556 216 396 388 262 390 644 Hop . | . . . . . . . . . . . Pick Up 48 | 5 11 1 2 3 1 1 7 4 6 7 Fast Attach 28 | 7 3 2 3 1 . . 3 2 4 3 Attach 20 | . 2 . 1 2 1 1 4 3 3 3 Detach 5 | 1 . 1 1 1 . . 1 . . . Swap 38 | . 8 4 5 1 . 3 9 4 1 3 Drop 58 | . 11 7 5 5 1 1 8 4 5 11 Fire 180 | . 56 16 22 13 . 5 29 17 . 22 Melee 10 | . . . . 10 . . . . . . Ram . | . . . . . . . . . . . Kick . | . . . . . . . . . . . Crush . | . . . . . . . . . . . Escape Stasis . | . . . . . . . . . . . Rewire . | . . . . . . . . . . . Trap . | . . . . . . . . . . . Miscellaneous . | . . . . . . . . . . . Route ------- -11/Junkyard -10/Materials (discovered 3 exits: *Mat x2 / *Min) -10/Mines -9/Materials (discovered 3 exits: *Mat / *Min x2) -9/Mines (discovered 3 exits: *Mat x2 / *Exi) -9/Exiles -8/Mines (discovered 2 exits: *Mat x2) -8/Materials (discovered 2 exits: *Sto x2) -8/Storage -7/Factory (discovered 2 exits: *Fac x2) -6/Factory History --------- Turn | Location | Event 6 | -11/Junkyard | Discovered new exit (range 13) 61 | -11/Junkyard | Entered Materials 314 | -10/Materials | Build established: Mutant 460 | -10/Materials | Discovered new exit (range 8) 588 | -10/Materials | Discovered new exit (range 18) 740 | -10/Materials | Discovered new exit (range 10) 1022 | -10/Materials | Repaired Lgt. Treads 1035 | -10/Materials | Entered Mines 1036 | -10/Mines | Learned location of Storage (-8) 1057 | -10/Mines | Found a hidden stash of uninstalled traps 1058 | -10/Mines | Met a Derelict bent on vengeance 1224 | -10/Mines | Core integrity fell below 50% 1433 | -10/Mines | Discovered new exit (range 15) 1488 | -10/Mines | Build established: Scavenger-Mutant 1540 | -10/Mines | Joined a pair of Derelicts in attacking an 0b10 outpost 1651 | -10/Mines | Entered Materials 1651 | -9/Materials | Accompanied by 2 allies 1651 | -9/Materials | Evolved 2 slots: Utility x2 1656 | -9/Materials | Led the pair of lost Derelicts to an unsafe place 1781 | -9/Materials | Identified exit to Mines 2049 | -9/Materials | Discovered new exit (range 8) 2382 | -9/Materials | Entered Mines 2444 | -9/Mines | Deemed a non-threat by the Exiles lab entrance 2444 | -9/Mines | Discovered new exit (range 5) 2509 | -9/Mines | A weapon hastily lodged in a ceiling crevice suddenly fell to the ground 2570 | -9/Mines | Discovered new exit (range 11) 2614 | -9/Mines | Learned Materials trap positions 2629 | -9/Mines | Received a Mining Laser from a helpful Derelict 2774 | -9/Mines | Excavation squad dispatched 2774 | -9/Mines | A large section of the Mines collapsed 2940 | -9/Mines | Discovered new exit (range 15) 3111 | -9/Mines | Learned location of Zion (-6) 3285 | -9/Mines | Entered Exiles 3315 | -9/Exiles | Met 8R-AWN 3335 | -9/Exiles | Met EX-HEX 3372 | -9/Exiles | Met EX-BIN 3386 | -9/Exiles | Aligned with FarCom system 3387 | -9/Exiles | Given EX-Vault access code 3415 | -9/Exiles | Opened EX-Vault 3424 | -9/Exiles | Found Superbattery 3450 | -9/Exiles | Warned to stay clear of 0b10 Research branches 3484 | -9/Exiles | Met EX-DEC 3533 | -9/Exiles | Discovered new exit (range 14) 3547 | -9/Exiles | Left Exiles lab with Superbattery 3547 | -9/Exiles | Entered Mines 3711 | -8/Mines | Discovered new exit (range 7) 4044 | -8/Mines | Discovered new exit (range 9) 4055 | -8/Mines | Entered Materials 4055 | -8/Materials | Evolved 2 slots: Propulsion x1, Utility x1 4056 | -8/Materials | Identified exit to Storage 4057 | -8/Materials | Loaded intel: 29 trap records 4659 | -8/Materials | Discovered exit to Storage (range 11) 4817 | -8/Materials | Entered Storage 4981 | -8/Storage | Met 01-MTF 4998 | -8/Storage | Build established: Mutant 5140 | -8/Storage | Garrison activated, responded to threat 5203 | -8/Storage | Discovered new exit (range 15) 5217 | -8/Storage | First assault squad dispatched 5281 | -8/Storage | Repaired Med. Armor Plating 5306 | -8/Storage | Entered Factory 5306 | -7/Factory | Accompanied by 2 allies (01-MTF) 5306 | -7/Factory | Evolved 2 slots: Propulsion x1, Utility x1 5311 | -7/Factory | 01-MTF left 5555 | -7/Factory | Build established: Skirmisher 5618 | -7/Factory | Discovered new exit (range 6) 5789 | -7/Factory | Discovered new exit (range 8) 5950 | -7/Factory | Identified exit to Factory 5960 | -7/Factory | Entered another Factory area 5960 | -6/Factory | Accompanied by 1 ally 5960 | -6/Factory | Evolved 2 slots: Utility x2 6977 | -6/Factory | Cargo convoy interrupted 7007 | -6/Factory | Spotted B-75 Beast 7042 | -6/Factory | Destroyed B-75 Beast 7067 | -6/Factory | Self-destructed Last Messages --------------- 07047_ Extracted 43 energy. 07049_ R-10 Processor collects Lgt. Ion Engine. 07050_ P-60 Hacker destroyed. 07051_ System corrupted: Matter fused (-8). 07051_ Extracted 43 energy. 07052_ R-10 Processor collects Mic. Nuclear Core. 07053_ R-10 Processor destroyed. 07054_ Extracted 43 energy. 07056_ Critical hit (Burn: +37). 07057_ Lgt. Treads destroyed. 07058_ Extracted 43 energy. 07060_ Adv. Treads destroyed. 07060_ Destroyed Shock Rifle. 07060_ Imp. Heat Sink destroyed. 07061_ Extracted 42 energy. 07063_ The unstable cave ceiling collapses. 07065_ Extracted 42 energy. 07065_ K-01 Serf collects debris. 07066_ Imp. Treads destroyed. 07066_ Ion Burst Cannon destroyed. Map ----- +----------------------------------------------------+ | ?????????????????????????????????????????????????? | | ?????????????????????????????????????????????????? | | ?????????????????????????????????????????????????? | | ?????????????????????????????????????????????????? | | ?????????????????????????????????????????????????? | | ?????????????????????????????????????????????????? | | ?????????????????????????????????????????????????? | | ?????????????????????????????????????????????????? | | ????????????????????????? ??? ???????????????????? | | ???????????????????? ????????????????????????????? | | ???????????#??????#???????????#??????????????????? | | ????????????#????????????????????????????????????? | | ????????#????? ??????? ?????????? ???????????????? | | ???????????#??????? ?????? ?????????????????????? | | ??????????????????? ????? ? ??"??????????????????? | | ?????????????? ??????????????????????????????????? | | ????????????# ??????????????? ????"??????????????? | | ???????? ???? ??#????????? ????????????????????? | | ????????????# k ?##?????#?????????????#?????????? | | ?????"??????# # #????????????????????????????? | | ???????????? ######? ???????????????????? | | ???????????% #? h"????"?????????????? | | ??????????? # # [ #?xh ???? ????????#????? | | ?????????? # !% %#? "?????"????#???????? | | ????????????# ## "??????????????????# | | ???? ???????# = ! !@# """""""???#???#????? | | ????????????# *= p=%=|!h """"""" ????#???#??? | | ????????????# =% !%%%* ??????#??????? | | ????????? ? # ! [==; ?? ???????????? | | ????????????# # % * # ???????##?????? | | ????????????# # # ;##????????#?????# | | ????????????#^^^^^# # ##??#???#?????#??? | | ???????????## # g # ########?????????? | | ????????????# # g# ## #????????#? | | ????????????# + # ## "" #?????#???? | | ????????????# # + ## T" #????###### | | ?????????#??# # # ## "" #?????# | | ????????????# # # ## ##????# " | | ????????????# ######### ## """ #???### " | | ??????????? !]] ## """ #?????# " | | ?????????? !] ## """ #?????# | | ????????// """"" !] / #?????# " | | ??????? // """"" ## ##????# " | | ?????? """ " ## #?????# " | | ?????# ? "" !## #?????# | | ?????? ???""" """"" G #####+############ | | ?????? ???????" """"" "" ^ | | ???????? ????????? "?" " ^ | | ?????????????????? ? ^ | | ???????????????????? ^^ "" | +----------------------------------------------------+ Best States ------------- Heat Dissipation 70 Coolant Potential 65 Energy Generation 18 Energy Capacity 300 Matter Stores 300 Matter Capacity 300 Sight Range 18 Terrain Scan Range 16 Terrain Scan Density 110 Armor Coverage 375 Evasion (%) 50 Recoil Reduction 3 Item Schematics ----------------- None Robot Schematics ------------------ None Fabricated ------------ Nothing Alien Tech Used ----------------- None Achievements -------------- Dramatic Entrance GoHome() Challenges ------------ None Game ------ Seed SpectralCoilPlating Manual? 0 Play Time 01:04:32 Cumulative 76.3 hours Start 2023.06.08 @ 11:24:33 End 2023.06.12 @ 11:09:14 Sessions 2 Manual Loads 0 Difficulty Rogue Special Mode None Game No. 67 Rogue 67 Adventurer 0 Explorer 0 Win Type - Total 0 Types 0/0/0/0/0/0/0/0/0 Lore% 34 Gallery% 44 Achievement% 34 Wizard Run 0 Options --------- ASCII 0 Keyboard 0 Movement Numpad Keybinds 0 Fullscreen 1 Font 18/SmallcapsGlow Map View 76x50 Tactical HUD 1 Map Filters NONE Filters NONE Steam 1 RUN: 4fdd703d-0ce3-46d3-a349-f8953d75e658